[Event "94th FRA-ch Accession 2019"]
[Site "Chartres"]
[Date "2019.08.23"]
[Round "7.1"]
[White "Velten, Paul"]
[Black "Lamard, Guillaume"]
[Result "1/2-1/2"]
[ECO "D37"]
[WhiteElo "2527"]
[BlackElo "2419"]
[Annotator "ChessBase"]
[PlyCount "181"]
[EventDate "2019.08.17"]
[EventType "swiss"]
[EventCountry "FRA"]
[SourceTitle "playchess.com"]
[Source "ChessBase"]
[SourceQuality "1"]
[TimeControl "40/5400+30:1800+30"]

1. d4 {[%emt 0:00:00]} Nf6 {[%emt 0:00:00]} 2. c4 {[%emt 0:00:26]} e6 {[%emt 0:00:00]} 3. Nf3 {[%emt 0:01:23]} d5 {[%emt 0:00:00]} 4. Nc3 {[%emt 0:00:43]} a6 {[%emt 0:00:01]} 5. cxd5 {[%emt 0:00:32]} exd5 {[%emt 0:00:03]} 6. Bg5 {[%emt 0:00:35]} Be6 {[%emt 0:00:06]} 7. e3 {[%emt 0:00:52]} Nbd7 {[%emt 0:00:03]} 8. Bd3 {[%emt 0:00:46]} Bd6 {[%emt 0:00:06]} 9. Bf4 {[%emt 0:01:10]} Qe7 {[%emt 0:00:39]} 10. Bxd6 {[%emt 0:00:41]} Qxd6 {[%emt 0:00:04]} 11. h3 {[%emt 0:00:36]} h6 {[%emt 0:04:43]} 12. Qc2 {[%emt 0:00:10]} O-O {[%emt 0:02:36]} 13. O-O {[%emt 0:02:13]} Rfc8 {[%emt 0:00:25]} 14. Rfd1 {[%emt 0:00:56]} c6 {[%emt 0:02:32]} 15. Rac1 {[%emt 0:00:56]} a5 {[%emt 0:03:53]} 16. Ne2 {[%emt 0:00:32]} Re8 {[%emt 0:07:56]} 17. Ng3 {[%emt 0:08:24]} Rac8 {[%emt 0:02:46]} 18. Qe2 {[%emt 0:02:40]} g6 {[%emt 0:04:35]} 19. Rf1 {[%emt 0:04:31]} Nh7 {[%emt 0:03:56]} 20. b3 {[%emt 0:10:30]} Ra8 {[%emt 0:09:33]} 21. Qb2 {[%emt 0:01:22]} f5 {[%emt 0:02:14]} 22. Ne5 {[%emt 0:01:55]} Nxe5 {[%emt 0:00:33]} 23. dxe5 {[%emt 0:00:05]} Qb4 {[%emt 0:04:02]} 24. f4 {[%emt 0:07:58]} a4 {[%emt 0:08:59]} 25. Qf2 {[%emt 0:03:10]} axb3 {[%emt 0:01:17]} 26. axb3 {[%emt 0:00:07]} Qxb3 {[%emt 0:06:59]} 27. Bc2 {[%emt 0:01:50]} Qb4 {[%emt 0:01:04]} 28. Ne2 {[%emt 0:01:26]} Qe7 {[%emt 0:01:38]} 29. g4 {[%emt 0:00:56]} c5 {[%emt 0:01:03]} 30. Ng3 {[%emt 0:02:29]} Qf7 {[%emt 0:04:43]} 31. gxf5 {[%emt 0:04:54]} gxf5 {[%emt 0:00:30]} 32. Bb1 {[%emt 0:00:09]} b6 {[%emt 0:00:58]} 33. Kh2 {[%emt 0:00:08]} Kh8 {[%emt 0:00:12]} 34. Qb2 {[%emt 0:04:30]} Rab8 {[%emt 0:07:51]} 35. Rg1 {[%emt 0:01:03]} Rg8 {[%emt 0:01:31]} 36. Rg2 {[%emt 0:05:07]} c4 {[%emt 0:05:07]} 37. Rcg1 {[%emt 0:01:42]} b5 {[%emt 0:01:04]} 38. Qb4 {[%emt 0:11:18]} Qf8 {[%emt 0:00:38]} 39. Rb2 {[%emt 0:00:07]} Qf7 {[%emt 0:06:09]} 40. Qa5 {[%emt 0:09:45]} Nf8 {[%emt 0:02:17]} 41. Rxb5 {[%emt 0:35:17]} Rxb5 {[%emt 0:30:21]} 42. Qxb5 {[%emt 0:00:05]} Ng6 {[%emt 0:00:19]} 43. Qb2 {[%emt 0:00:56]} Nh4 {[%emt 0:00:45]} 44. Qf2 {[%emt 0:00:08]} d4 {[%emt 0:00:00]} 45. Ne2 {[%emt 0:00:00]} d3 {[%emt 0:00:00]} 46. Qxh4 {[%emt 0:00:00]} dxe2 {[%emt 0:00:00]} 47. Qxh6+ {[%emt 0:00:00]} Qh7 {[%emt 0:00:00]} 48. Qxh7+ {[%emt 0:00:00]} Kxh7 {[%emt 0:00:00]} 49. Re1 {[%emt 0:00:00]} Rb8 {[%emt 0:00:00]} 50. Bc2 {[%emt 0:00:00]} Rb2 {[%emt 0:00:00]} 51. Rxe2 {[%emt 0:00:00]} c3 {[%emt 0:00:00]} 52. Kg3 {[%emt 0:00:00]} Kg6 {[%emt 0:00:00]} 53. e4 {[%emt 0:00:00]} fxe4 {[%emt 0:00:00]} 54. Kf2 {[%emt 0:00:00]} Bxh3 {[%emt 0:00:00]} 55. Ke3 {[%emt 0:00:00]} Bf5 {[%emt 0:00:00]} 56. Kd4 {[%emt 0:00:00]} Ra2 {[%emt 0:00:00]} 57. Rg2+ {[%emt 0:00:00]} Kh6 {[%emt 0:00:00]} 58. Rg5 {[%emt 0:00:00]} Bg6 {[%emt 0:07:01]} 59. Kxc3 {[%emt 0:00:10]} Ra1 {[%emt 0:00:03]} 60. e6 {[%emt 0:01:34]} Ra6 {[%emt 0:02:34]} 61. Bb3 {[%emt 0:00:44]} e3 {[%emt 0:01:46]} 62. Bc4 {[%emt 0:01:31]} e2 {[%emt 0:01:25]} 63. Re5 {[%emt 0:00:25]} Ra3+ {[%emt 0:00:51]} 64. Bb3 {[%emt 0:06:06]} Kg7 {[%emt 0:00:20]} 65. Rxe2 {[%emt 0:00:44]} Kf6 {[%emt 0:00:08]} 66. Kb4 {[%emt 0:00:22]} Ra1 {[%emt 0:00:50]} 67. Bc4 {[%emt 0:01:19]} Be8 {[%emt 0:02:32]} 68. Kc5 {[%emt 0:01:34]} Ra8 {[%emt 0:01:04]} 69. Rh2 {[%emt 0:02:56]} Rc8+ {[%emt 0:00:17]} 70. Kd4 {[%emt 0:00:03]} Rd8+ {[%emt 0:00:25]} 71. Ke3 {[%emt 0:00:02]} Rc8 {[%emt 0:00:09]} 72. Bd5 {[%emt 0:00:10]} Rd8 {[%emt 0:00:13]} 73. Ba2 {[%emt 0:00:57]} Bg6 {[%emt 0:00:18]} 74. Bc4 {[%emt 0:00:11]} Bf5 {[%emt 0:00:43]} 75. Rh6+ {[%emt 0:00:41]} Kg7 {[%emt 0:00:03]} 76. Rh2 {[%emt 0:00:37]} Kf6 {[%emt 0:00:03]} 77. Rh1 {[%emt 0:00:03]} Re8 {[%emt 0:01:55]} 78. Rh6+ {[%emt 0:01:18]} Kg7 {[%emt 0:00:03]} 79. Rh5 {[%emt 0:00:58]} Bxe6 {[%emt 0:00:15]} 80. Re5 {[%emt 0:00:05]} Bd7 {[%emt 0:00:41]} 81. Kd4 {[%emt 0:00:17]} Rxe5 {[%emt 0:00:11]} 82. Kxe5 {[%emt 0:00:09]} Kf8 {[%emt 0:00:06]} 83. Be6 {[%emt 0:00:05]} Be8 {[%emt 0:00:10]} 84. f5 {[%emt 0:00:15]} Bh5 {[%emt 0:00:05]} 85. f6 {[%emt 0:00:04]} Be8 {[%emt 0:00:08]} 86. Kf5 {[%emt 0:00:07]} Ba4 {[%emt 0:00:08]} 87. Kg5 {[%emt 0:00:05]} Be8 {[%emt 0:00:04]} 88. Kh6 {[%emt 0:00:06]} Ba4 {[%emt 0:00:04]} 89. f7 {[%emt 0:00:11]} Be8 {[%emt 0:00:04]} 90. Kh7 {[%emt 0:00:07]} Bxf7 {[%emt 0:00:04]} 91. Bxf7 {[%emt 0:06:31]} 1/2-1/2

[Event "94th FRA-ch Accession 2019"]
[Site "Chartres"]
[Date "2019.08.23"]
[Round "7.2"]
[White "Joie, Sebastien"]
[Black "Demuth, Adrien"]
[Result "1/2-1/2"]
[ECO "A13"]
[WhiteElo "2413"]
[BlackElo "2495"]
[Annotator "ChessBase"]
[PlyCount "61"]
[EventDate "2019.08.17"]
[EventType "swiss"]
[EventCountry "FRA"]
[SourceTitle "playchess.com"]
[Source "ChessBase"]
[SourceQuality "1"]
[TimeControl "40/5400+30:1800+30"]

1. Nf3 {[%emt 0:00:36]} Nf6 {[%emt 0:00:00]} 2. c4 {[%emt 0:01:05]} e6 {[%emt 0:00:00]} 3. g3 {[%emt 0:00:14]} a6 {[%emt 0:00:16]} 4. Bg2 {[%emt 0:01:43]} b5 {[%emt 0:00:05]} 5. b3 {[%emt 0:00:14]} c5 {[%emt 0:02:01]} 6. O-O {[%emt 0:00:19]} Bb7 {[%emt 0:00:08]} 7. d3 {[%emt 0:03:30]} Be7 {[%emt 0:00:50]} 8. Bb2 {[%emt 0:03:02]} O-O {[%emt 0:00:21]} 9. e3 {[%emt 0:04:25]} d6 {[%emt 0:09:43]} 10. Qe2 {[%emt 0:01:24]} Nbd7 {[%emt 0:00:35]} 11. Nbd2 {[%emt 0:00:40]} Rc8 {[%emt 0:01:29]} 12. Rfd1 {[%emt 0:01:44]} Re8 {[%emt 0:05:16]} 13. e4 {[%emt 0:02:45]} Bf8 {[%emt 0:07:12]} 14. Nh4 {[%emt 0:03:36]} e5 {[%emt 0:05:38]} 15. Bh3 {[%emt 0:01:26]} g6 {[%emt 0:03:12]} 16. Nf1 {[%emt 0:07:16]} bxc4 {[%emt 0:09:42]} 17. bxc4 {[%emt 0:00:39]} Rb8 {[%emt 0:00:04]} 18. Bc3 {[%emt 0:00:55]} Bc6 {[%emt 0:05:37]} 19. Ne3 {[%emt 0:03:43]} Nh5 {[%emt 0:04:15]} 20. Nhg2 {[%emt 0:04:56]} Ng7 {[%emt 0:01:22]} 21. Nd5 {[%emt 0:01:21]} Ne6 {[%emt 0:03:15]} 22. Rdb1 {[%emt 0:02:46]} Bxd5 {[%emt 0:11:44]} 23. Rxb8 {[%emt 0:00:18]} Nxb8 {[%emt 0:00:40]} 24. cxd5 {[%emt 0:01:19]} Nd4 {[%emt 0:06:58]} 25. Bxd4 {[%emt 0:01:17]} cxd4 {[%emt 0:01:34]} 26. Rc1 {[%emt 0:03:12]} a5 {[%emt 0:04:05]} 27. Bc8 {[%emt 0:08:33]} Qb6 {[%emt 0:02:21]} 28. Qc2 {[%emt 0:01:09]} Rd8 {[%emt 0:06:09]} 29. Ne1 {[%emt 0:03:58]} Nd7 {[%emt 0:02:00]} 30. Bxd7 {[%emt 0:00:37]} Rxd7 {[%emt 0:00:01]} 31. Rb1 {[%emt 0:13:45]} 1/2-1/2

[Event "94th FRA-ch Accession 2019"]
[Site "Chartres"]
[Date "2019.08.23"]
[Round "7.3"]
[White "Di Nicolantonio, Lucas"]
[Black "Bailet, Pierre"]
[Result "1/2-1/2"]
[ECO "C36"]
[WhiteElo "2394"]
[BlackElo "2490"]
[Annotator "ChessBase"]
[PlyCount "59"]
[EventDate "2019.08.17"]
[EventType "swiss"]
[EventCountry "FRA"]
[SourceTitle "playchess.com"]
[Source "ChessBase"]
[SourceQuality "1"]
[TimeControl "40/5400+30:1800+30"]

1. e4 {[%emt 0:00:00]} e5 {[%emt 0:00:00]} 2. f4 {[%emt 0:00:00]} d5 {[%emt 0:00:16]} 3. exd5 {[%emt 0:00:12]} exf4 {[%emt 0:00:13]} 4. Nf3 {[%emt 0:00:38]} Nf6 {[%emt 0:01:08]} 5. Bc4 {[%emt 0:01:00]} Nxd5 {[%emt 0:02:43]} 6. O-O {[%emt 0:02:08]} Be6 {[%emt 0:01:09]} 7. Bb3 {[%emt 0:01:11]} c5 {[%emt 0:05:16]} 8. d4 {[%emt 0:06:40]} cxd4 {[%emt 0:00:42]} 9. Nxd4 {[%emt 0:00:13]} Bc5 {[%emt 0:00:39]} 10. Kh1 {[%emt 0:00:40]} Bxd4 {[%emt 0:03:46]} 11. Qxd4 {[%emt 0:00:06]} O-O {[%emt 0:00:10]} 12. Bxd5 {[%emt 0:09:32]} Nc6 {[%emt 0:14:40]} 13. Qxf4 {[%emt 0:00:24]} Qxd5 {[%emt 0:00:41]} 14. Nc3 {[%emt 0:02:21]} Qc4 {[%emt 0:07:08]} 15. Be3 {[%emt 0:30:46]} Rfe8 {[%emt 0:05:53]} 16. Rad1 {[%emt 0:04:20]} Qxf4 {[%emt 0:10:49]} 17. Bxf4 {[%emt 0:00:19]} Nb4 {[%emt 0:01:15]} 18. Rf2 {[%emt 0:12:00]} Nxa2 {[%emt 0:08:29]} 19. Nb5 {[%emt 0:01:52]} Nb4 {[%emt 0:01:22]} 20. Nc7 {[%emt 0:08:16]} Red8 {[%emt 0:01:46]} 21. Rfd2 {[%emt 0:01:17]} Rxd2 {[%emt 0:00:47]} 22. Rxd2 {[%emt 0:00:29]} Rc8 {[%emt 0:00:24]} 23. Kg1 {[%emt 0:03:15]} Bf5 {[%emt 0:06:17]} 24. Nb5 {[%emt 0:02:55]} Bxc2 {[%emt 0:04:38]} 25. Nxa7 {[%emt 0:07:45]} Re8 {[%emt 0:00:40]} 26. Bd6 {[%emt 0:01:50]} Nd3 {[%emt 0:00:29]} 27. Bg3 {[%emt 0:00:38]} Nb4 {[%emt 0:07:40]} 28. Bd6 {[%emt 0:00:09]} Nd3 {[%emt 0:01:18]} 29. Bg3 {[%emt 0:00:11]} Bb1 {[%emt 0:04:46]} 30. Rd1 {[%emt 0:00:40]} 1/2-1/2

[Event "94th FRA-ch Accession 2019"]
[Site "Chartres"]
[Date "2019.08.23"]
[Round "7.4"]
[White "Bijaoui, Manuel"]
[Black "Stephan, Victor"]
[Result "0-1"]
[ECO "C42"]
[WhiteElo "2433"]
[BlackElo "2413"]
[Annotator "NA"]
[PlyCount "40"]
[EventDate "2019.08.17"]
[EventType "swiss"]
[EventCountry "FRA"]
[SourceTitle "playchess.com"]
[Source "ChessBase"]
[SourceQuality "1"]
[TimeControl "40/5400+30:1800+30"]

1. e4 {[%emt 0:00:00]} e5 {[%emt 0:00:00]} 2. Nf3 {[%emt 0:00:00]} Nf6 {[%emt 0:00:00]} 3. Nxe5 {[%emt 0:01:10]} d6 {[%emt 0:00:00]} 4. Nf3 {[%emt 0:00:09]} Nxe4 {[%emt 0:00:06]} 5. d4 {[%emt 0:00:21]} d5 {[%emt 0:00:38]} 6. Bd3 {[%emt 0:00:10]} Nc6 {[%emt 0:00:33]} 7. O-O {[%emt 0:00:15]} Be7 {[%emt 0:00:35]} 8. Re1 {[%emt 0:01:02]} Bf5 {[%emt 0:03:35]} 9. c4 {[%emt 0:00:41]} Nb4 {[%emt 0:03:01]} 10. Bf1 {[%emt 0:00:11]} dxc4 {[%emt 0:01:27]} 11. g4 {[%emt 0:37:54]} Bg6 {[%emt 0:07:33]} 12. Ne5 {[%emt 0:00:54]} Nxf2 {[%emt 0:13:38]} 13. Kxf2 {[%emt 0:09:46]} Bh4+ {[%emt 0:01:34]} 14. Kg1 {[%emt 0:01:45]} Bxe1 {[%emt 0:00:43]} 15. Nxg6 {[%emt 0:00:16]} Bf2+ {[%emt 0:01:38]} 16. Kxf2 {[%emt 0:01:05]} hxg6 {[%emt 0:00:51]} 17. Qe1+ {[%emt 0:14:36]} Kd7 {[%emt 0:08:10]} 18. Qxb4 {[%emt 0:02:06]} Qf6+ {[%emt 0:02:02]} 19. Kg1 {[%emt 0:10:35]} Qxd4+ {[%emt 0:00:40]} 20. Kh1 {[%emt 0:00:12]} Rxh2+ {[%emt 0:00:27]} 0-1

[Event "94th FRA-ch Accession 2019"]
[Site "Chartres"]
[Date "2019.08.23"]
[Round "7.5"]
[White "Laurent-Paoli, Pierre"]
[Black "Maurizzi, Marc Andria"]
[Result "1/2-1/2"]
[ECO "D30"]
[WhiteElo "2371"]
[BlackElo "2419"]
[Annotator "NA"]
[PlyCount "57"]
[EventDate "2019.08.17"]
[EventType "swiss"]
[EventCountry "FRA"]
[SourceTitle "playchess.com"]
[Source "ChessBase"]
[SourceQuality "1"]
[TimeControl "40/5400+30:1800+30"]

1. d4 {[%emt 0:00:00]} Nf6 {[%emt 0:00:00]} 2. Nf3 {[%emt 0:00:00]} e6 {[%emt 0:00:00]} 3. e3 {[%emt 0:00:00]} d5 {[%emt 0:02:07]} 4. c4 {[%emt 0:00:09]} a6 {[%emt 0:01:05]} 5. b3 {[%emt 0:01:14]} c5 {[%emt 0:00:50]} 6. Bd3 {[%emt 0:01:28]} cxd4 {[%emt 0:04:56]} 7. exd4 {[%emt 0:00:40]} Nc6 {[%emt 0:05:45]} 8. Bb2 {[%emt 0:00:46]} g6 {[%emt 0:01:46]} 9. O-O {[%emt 0:05:35]} Bg7 {[%emt 0:01:55]} 10. Nbd2 {[%emt 0:09:53]} O-O {[%emt 0:01:58]} 11. Ne5 {[%emt 0:00:30]} Bd7 {[%emt 0:00:30]} 12. Ndf3 {[%emt 0:00:30]} Rc8 {[%emt 0:00:30]} 13. Re1 {[%emt 0:00:30]} Qc7 {[%emt 0:00:30]} 14. Rc1 {[%emt 0:00:30]} dxc4 {[%emt 0:00:30]} 15. bxc4 {[%emt 0:25:08]} Rfd8 {[%emt 0:50:22]} 16. Qb3 {[%emt 0:19:53]} Nxe5 {[%emt 0:10:25]} 17. dxe5 {[%emt 0:06:30]} Nh5 {[%emt 0:01:39]} 18. g3 {[%emt 0:01:50]} Bf8 {[%emt 0:02:15]} 19. Be4 {[%emt 0:04:35]} Bc6 {[%emt 0:00:35]} 20. Ng5 {[%emt 0:01:15]} Be7 {[%emt 0:01:20]} 21. h4 {[%emt 0:19:34]} Ng7 {[%emt 0:01:07]} 22. Bxc6 {[%emt 0:00:00]} Qxc6 {[%emt 0:00:30]} 23. Ne4 {[%emt 0:01:00]} Nf5 {[%emt 0:00:25]} 24. c5 {[%emt 0:00:00]} Rd5 25. Nd6 {[%emt 0:00:00]} Rc7 26. Ne4 {[%emt 0:00:00]} Rcd7 {[%emt 0:02:20]} 27. Nd6 {[%emt 0:00:00]} Rc7 28. Ne4 {[%emt 0:00:00]} Rcd7 {[%emt 0:01:35]} 29. Nd6 {[%emt 0:00:00]} 1/2-1/2

[Event "94th FRA-ch Accession 2019"]
[Site "Chartres"]
[Date "2019.08.23"]
[Round "7.6"]
[White "Gatineau, Yovann"]
[Black "Duboue, Peio"]
[Result "0-1"]
[ECO "B13"]
[WhiteElo "2363"]
[BlackElo "2413"]
[Annotator "NA"]
[PlyCount "48"]
[EventDate "2019.08.17"]
[EventType "swiss"]
[EventCountry "FRA"]
[SourceTitle "playchess.com"]
[Source "ChessBase"]
[SourceQuality "1"]
[TimeControl "40/5400+30:1800+30"]

1. d4 {[%emt 0:01:34]} Nf6 {[%emt 0:00:00]} 2. Bf4 {[%emt 0:00:10]} d5 {[%emt 0:00:24]} 3. e3 {[%emt 0:00:05]} c5 {[%emt 0:00:04]} 4. Nc3 {[%emt 0:00:05]} cxd4 {[%emt 0:01:48]} 5. exd4 {[%emt 0:00:10]} a6 {[%emt 0:00:07]} 6. Nf3 {[%emt 0:00:06]} Bg4 {[%emt 0:00:43]} 7. h3 {[%emt 0:00:09]} Bxf3 {[%emt 0:03:20]} 8. Qxf3 {[%emt 0:00:07]} e6 {[%emt 0:01:38]} 9. g4 {[%emt 0:10:12]} Bb4 {[%emt 0:05:06]} 10. a3 {[%emt 0:01:10]} Qa5 {[%emt 0:03:35]} 11. Bd2 {[%emt 0:01:17]} Nc6 {[%emt 0:01:52]} 12. Bd3 {[%emt 0:17:22]} Nxd4 {[%emt 0:18:31]} 13. Qf4 {[%emt 0:00:34]} Nc6 {[%emt 0:03:46]} 14. O-O-O {[%emt 0:05:22]} d4 {[%emt 0:10:12]} 15. Ne4 {[%emt 0:27:28]} Bxd2+ {[%emt 0:00:13]} 16. Rxd2 {[%emt 0:00:06]} Nxe4 {[%emt 0:00:08]} 17. Bxe4 {[%emt 0:00:06]} O-O {[%emt 0:00:27]} 18. Bxc6 {[%emt 0:00:22]} e5 {[%emt 0:00:14]} 19. Qe4 {[%emt 0:09:27]} bxc6 {[%emt 0:00:16]} 20. Re1 {[%emt 0:00:32]} c5 {[%emt 0:10:10]} 21. Qxe5 {[%emt 0:01:06]} Rab8 {[%emt 0:03:27]} 22. Rd3 {[%emt 0:06:47]} g6 {[%emt 0:04:09]} 23. b4 {[%emt 0:02:24]} Qa4 {[%emt 0:00:20]} 24. bxc5 {[%emt 0:00:10]} Rbe8 {[%emt 0:01:15]} 0-1

[Event "94th FRA-ch Accession 2019"]
[Site "Chartres"]
[Date "2019.08.24"]
[Round "8.1"]
[White "Bailet, Pierre"]
[Black "Lamard, Guillaume"]
[Result "1/2-1/2"]
[ECO "D02"]
[WhiteElo "2490"]
[BlackElo "2419"]
[Annotator "ChessBase"]
[PlyCount "61"]
[EventDate "2019.08.17"]
[EventType "swiss"]
[EventCountry "FRA"]
[SourceTitle "playchess.com"]
[Source "ChessBase"]
[SourceQuality "1"]
[TimeControl "40/5400+30:1800+30"]

1. Nf3 {[%emt 0:00:00]} Nf6 {[%emt 0:00:25]} 2. g3 {[%emt 0:00:37]} d5 {[%emt 0:00:14]} 3. Bg2 {[%emt 0:00:25]} c6 {[%emt 0:00:04]} 4. O-O {[%emt 0:01:09]} Bg4 {[%emt 0:00:04]} 5. d4 {[%emt 0:01:54]} Nbd7 {[%emt 0:01:43]} 6. Nbd2 {[%emt 0:02:22]} e6 {[%emt 0:00:09]} 7. Re1 {[%emt 0:00:21]} Be7 {[%emt 0:00:21]} 8. e4 {[%emt 0:01:32]} dxe4 {[%emt 0:02:17]} 9. Nxe4 {[%emt 0:00:55]} O-O {[%emt 0:00:26]} 10. c3 {[%emt 0:04:22]} Bh5 {[%emt 0:17:46]} 11. Qb3 {[%emt 0:08:27]} Qb6 {[%emt 0:01:13]} 12. Nxf6+ {[%emt 0:10:17]} Bxf6 {[%emt 0:00:33]} 13. Bf4 {[%emt 0:00:16]} Rfe8 {[%emt 0:03:04]} 14. Ne5 {[%emt 0:29:14]} Bxe5 {[%emt 0:07:34]} 15. Bxe5 {[%emt 0:00:14]} a5 {[%emt 0:00:49]} 16. c4 {[%emt 0:03:34]} a4 {[%emt 0:07:13]} 17. Qc3 {[%emt 0:01:00]} Nxe5 {[%emt 0:03:21]} 18. Rxe5 {[%emt 0:00:15]} Bg6 {[%emt 0:00:02]} 19. Rae1 {[%emt 0:01:00]} Rac8 {[%emt 0:04:35]} 20. c5 {[%emt 0:03:58]} Qc7 {[%emt 0:02:56]} 21. Qb4 {[%emt 0:01:12]} Ra8 {[%emt 0:01:37]} 22. d5 {[%emt 0:01:24]} cxd5 {[%emt 0:00:08]} 23. Bxd5 {[%emt 0:00:15]} Reb8 {[%emt 0:03:22]} 24. Bf3 {[%emt 0:01:04]} Ra5 {[%emt 0:02:57]} 25. Qb6 {[%emt 0:04:33]} Rc8 {[%emt 0:03:14]} 26. Qxc7 {[%emt 0:11:10]} Rxc7 {[%emt 0:00:03]} 27. c6 {[%emt 0:00:44]} Rxe5 {[%emt 0:00:06]} 28. Rxe5 {[%emt 0:00:32]} bxc6 {[%emt 0:00:17]} 29. Ra5 {[%emt 0:00:48]} Kf8 {[%emt 0:00:46]} 30. Rxa4 {[%emt 0:00:18]} Ke7 {[%emt 0:00:08]} 31. Rc4 {[%emt 0:03:11]} 1/2-1/2

[Event "94th FRA-ch Accession 2019"]
[Site "Chartres"]
[Date "2019.08.24"]
[Round "8.2"]
[White "Demuth, Adrien"]
[Black "Stephan, Victor"]
[Result "1-0"]
[ECO "E14"]
[WhiteElo "2495"]
[BlackElo "2413"]
[Annotator "ChessBase"]
[PlyCount "141"]
[EventDate "2019.08.17"]
[EventType "swiss"]
[EventCountry "FRA"]
[SourceTitle "playchess.com"]
[Source "ChessBase"]
[SourceQuality "1"]
[TimeControl "40/5400+30:1800+30"]

1. d4 {[%emt 0:00:00]} Nf6 {[%emt 0:00:00]} 2. Nf3 {[%emt 0:00:00]} e6 {[%emt 0:00:10]} 3. c4 {[%emt 0:00:12]} d5 {[%emt 0:01:27]} 4. e3 {[%emt 0:01:27]} b6 {[%emt 0:04:09]} 5. b3 {[%emt 0:00:58]} Bb7 {[%emt 0:00:41]} 6. Bb2 {[%emt 0:00:20]} Bd6 {[%emt 0:01:15]} 7. Bd3 {[%emt 0:00:08]} O-O {[%emt 0:00:25]} 8. O-O {[%emt 0:00:08]} Nbd7 {[%emt 0:03:08]} 9. Nc3 {[%emt 0:05:38]} a6 {[%emt 0:01:46]} 10. Qe2 {[%emt 0:23:15]} Qe7 {[%emt 0:04:11]} 11. Rad1 {[%emt 0:08:54]} Ne4 {[%emt 0:05:09]} 12. Nd2 {[%emt 0:09:31]} f5 {[%emt 0:09:13]} 13. f4 {[%emt 0:01:13]} Ndf6 {[%emt 0:06:05]} 14. Nf3 {[%emt 0:00:37]} Ng4 {[%emt 0:05:47]} 15. Bxe4 {[%emt 0:05:11]} fxe4 {[%emt 0:01:48]} 16. Ne5 {[%emt 0:01:02]} Nf6 {[%emt 0:03:18]} 17. Rc1 {[%emt 0:05:31]} Rac8 {[%emt 0:07:14]} 18. Na4 {[%emt 0:02:36]} dxc4 {[%emt 0:06:14]} 19. bxc4 {[%emt 0:00:59]} Nd7 {[%emt 0:01:44]} 20. Nxd7 {[%emt 0:10:27]} Qxd7 {[%emt 0:00:08]} 21. Qc2 {[%emt 0:00:04]} Be7 {[%emt 0:06:53]} 22. Nc3 {[%emt 0:03:23]} Qc6 {[%emt 0:01:33]} 23. Qb3 {[%emt 0:00:04]} Rfd8 {[%emt 0:01:59]} 24. Rfd1 {[%emt 0:06:33]} Qe8 {[%emt 0:01:00]} 25. c5 {[%emt 0:02:24]} Qc6 {[%emt 0:03:42]} 26. cxb6 {[%emt 0:01:46]} Qxb6 {[%emt 0:00:47]} 27. Qc2 {[%emt 0:01:57]} Bd5 {[%emt 0:03:06]} 28. Nxd5 {[%emt 0:03:52]} exd5 {[%emt 0:00:23]} 29. Bc3 {[%emt 0:00:02]} c5 {[%emt 0:02:54]} 30. Qd2 {[%emt 0:01:55]} Qe6 {[%emt 0:01:25]} 31. dxc5 {[%emt 0:00:35]} Bxc5 {[%emt 0:01:48]} 32. Bd4 {[%emt 0:00:04]} Bxd4 {[%emt 0:00:31]} 33. Qxd4 {[%emt 0:00:04]} h6 {[%emt 0:01:48]} 34. h3 {[%emt 0:00:43]} Kh7 {[%emt 0:00:47]} 35. Kh2 {[%emt 0:00:24]} Rc6 {[%emt 0:00:50]} 36. Rc5 {[%emt 0:02:07]} Rxc5 {[%emt 0:00:33]} 37. Qxc5 {[%emt 0:00:01]} Rd6 {[%emt 0:01:25]} 38. Rd4 {[%emt 0:00:28]} h5 {[%emt 0:00:57]} 39. Qa5 {[%emt 0:01:39]} h4 {[%emt 0:01:00]} 40. Qe1 {[%emt 0:02:31]} Qf6 {[%emt 0:00:13]} 41. Qd1 {[%emt 0:04:02]} Qg6 {[%emt 0:02:59]} 42. Qg4 {[%emt 0:06:47]} Qxg4 {[%emt 0:00:57]} 43. hxg4 {[%emt 0:00:01]} g5 {[%emt 0:00:08]} 44. g3 {[%emt 0:00:33]} hxg3+ {[%emt 0:02:00]} 45. Kxg3 {[%emt 0:00:04]} Kg6 {[%emt 0:00:08]} 46. Rd2 {[%emt 0:07:38]} Rd7 {[%emt 0:04:03]} 47. Rd1 {[%emt 0:06:27]} Rd6 {[%emt 0:04:41]} 48. Rd2 {[%emt 0:01:07]} Rd8 {[%emt 0:00:08]} 49. a4 {[%emt 0:06:58]} gxf4+ {[%emt 0:02:35]} 50. Kxf4 {[%emt 0:00:04]} Rf8+ {[%emt 0:00:13]} 51. Ke5 {[%emt 0:00:03]} Re8+ {[%emt 0:00:11]} 52. Kf4 {[%emt 0:00:26]} Rf8+ {[%emt 0:00:04]} 53. Ke5 {[%emt 0:00:03]} Re8+ {[%emt 0:00:04]} 54. Kd4 {[%emt 0:00:49]} Rc8 {[%emt 0:01:10]} 55. Ra2 {[%emt 0:01:18]} Rd8 {[%emt 0:00:35]} 56. Rf2 {[%emt 0:01:15]} Kg5 {[%emt 0:01:29]} 57. Rf4 {[%emt 0:00:33]} a5 {[%emt 0:05:20]} 58. Rf5+ {[%emt 0:00:29]} Kxg4 {[%emt 0:00:04]} 59. Rxd5 {[%emt 0:00:05]} Rb8 {[%emt 0:05:03]} 60. Kxe4 {[%emt 0:00:05]} Rb4+ {[%emt 0:00:07]} 61. Rd4 {[%emt 0:00:12]} Rb3 {[%emt 0:00:31]} 62. Rd5 {[%emt 0:00:17]} Rb4+ {[%emt 0:00:05]} 63. Rd4 {[%emt 0:00:01]} Rb3 {[%emt 0:00:04]} 64. Ke5+ {[%emt 0:00:58]} Kg5 {[%emt 0:00:29]} 65. e4 {[%emt 0:00:16]} Ra3 {[%emt 0:00:32]} 66. Ke6 {[%emt 0:00:51]} Kg6 {[%emt 0:01:36]} 67. e5 {[%emt 0:00:06]} Rb3 {[%emt 0:00:08]} 68. Rg4+ {[%emt 0:00:57]} Kh5 {[%emt 0:00:05]} 69. Rg8 {[%emt 0:00:18]} Ra3 {[%emt 0:00:49]} 70. Kf5 {[%emt 0:00:46]} Rf3+ {[%emt 0:01:10]} 71. Ke4 {[%emt 0:00:19]} 1-0